bitfinex/quotes_SOLUSD_20241010
["timestamp","ask_amount","ask_price","bid_price","bid_amount"]
[1728555767951,7.1824,139.23,139.21,0.25098]
[1728555768255,7.1819,139.24,139.21,0.25098]
[1728555768630,7.1819,139.24,139.21,1.68736239]
[1728555769455,17.9517,139.27,139.21,1.68736239]
[1728555769667,7.1814,139.25,139.22,7.1827]
[1728555769957,15.3829,139.28,139.23,1.43625492]
[1728555770161,7.47382345,139.3,139.25,13.8899677]
[1728555770453,7.1783,139.31,139.27,7.43118]
[1728555770647,7.1778,139.32,139.28,8.61530812]
[1728555771150,33.7557,139.36,139.28,1.43570812]
[1728555771333,33.7557,139.36,139.28,8.61510812]
[1728555771334,7.1778,139.32,139.28,8.61510812]
[1728555772127,7.1778,139.32,139.29,0.12549]
[1728555772455,7.1773,139.33,139.29,7.43018]
[1728555772667,7.1773,139.33,139.3,1.43551341]
[1728555774660,7.176,139.36,139.31,0.25098]
[1728555774951,16.6275,139.42,139.33,0.12549]
[1728555775157,7.1755,139.37,139.33,0.12549]
[1728555775848,7.1756,139.36,139.32,7.1775]
[1728555776052,7.1766,139.35,139.31,6.38809]
[1728555776445,7.1766,139.35,139.32,1.43536499]
[1728555777052,7.1766,139.35,139.31,6.38809]
[1728555777247,7.1742,139.39,139.34,7.1766]
[1728555777453,7.1742,139.39,139.35,8.61108556]
[1728555777760,7.1737,139.4,139.36,0.12549]
[1728555780260,16.6275,139.42,139.35,1.43498556]
[1728555780445,7.1748,139.38,139.35,0.12549]
[1728555780642,7.1742,139.39,139.35,1.56047567]
[1728555781659,7.1742,139.39,139.35,0.12549]
[1728555781857,7.1748,139.38,139.34,17.9409]
[1728555782655,7.1748,139.38,139.35,1.4350167]
[1728555782857,7.4650626,139.44,139.35,1.68599771]
[1728555783071,7.1737,139.4,139.36,17.9385]
[1728555783234,15.9272,139.45,139.36,17.9385]
[1728555783235,7.1741,139.39,139.36,17.9385]
[1728555783648,7.1737,139.4,139.36,17.9385]
[1728555783884,7.1737,139.4,139.37,1.43482983]
[1728555784541,7.1727,139.42,139.38,7.1744]
[1728555785265,7.1727,139.42,139.37,8.60982983]
[1728555787064,7.1733,139.41,139.37,8.60982983]
[1728555787364,33.8552,139.45,139.37,8.60982983]
[1728555787365,7.1727,139.42,139.37,8.60982983]
[1728555787735,7.1733,139.41,139.37,7.175]
[1728555788168,7.1733,139.41,139.38,1.4347295]
[1728555790172,7.1733,139.41,139.37,7.175]
[1728555791178,7.1736,139.4,139.36,24.5465]
[1728555791850,7.1736,139.4,139.37,1.43483595]
[1728555793177,7.1741,139.39,139.36,24.5465]
[1728555793361,7.1741,139.39,139.35,7.42688]
[1728555793362,7.1743,139.39,139.35,7.42688]
[1728555793557,59.635084,139.44,139.35,0.12549]
[1728555793765,17.9331,139.41,139.34,0.25098]
[1728555794164,7.1754,139.37,139.34,0.12549]
[1728555794477,17.9356,139.39,139.3,76.0676]
[1728555794680,7.1758,139.36,139.32,7.1775]
[1728555794980,23.5251,139.42,139.33,1.43512294]
[1728555795550,7.46558488,139.43,139.36,6.629]
[1728555795752,23.776884,139.44,139.37,8.60976018]
[1728555795753,7.1732,139.41,139.37,8.60976018]
[1728555795974,23.776884,139.44,139.37,1.43476018]
[1728555796273,7.1726,139.42,139.38,25.1104]
[1728555797873,7.1721,139.43,139.39,8.60858972]
[1728555799486,7.1716,139.44,139.4,7.29899]
[1728555800359,7.172,139.43,139.4,0.12549]
[1728555801362,17.9266,139.46,139.39,0.12549]
[1728555801581,7.1715,139.44,139.41,0.12549]
[1728555801751,7.1711,139.45,139.41,7.42398]
[1728555803959,33.1498,139.49,139.43,0.25098]
[1728555804170,7.17,139.47,139.44,1.43410273]
[1728555804568,7.17,139.47,139.43,7.42278]
[1728555805669,7.1695,139.48,139.44,7.1715]
[1728555806058,7.1695,139.48,139.44,8.60554575]
[1728555806881,7.1695,139.48,139.44,7.1715]
[1728555807183,7.17,139.47,139.43,8.85692514]
[1728555807358,7.17,139.47,139.43,0.25098]
[1728555807564,7.1706,139.46,139.42,24.0103]
[1728555807760,7.1706,139.46,139.42,25.44452553]
[1728555808181,7.1706,139.46,139.42,24.0103]
[1728555808774,7.1706,139.46,139.42,25.44452336]
[1728555809290,7.1706,139.46,139.42,31.1828]
[1728555810472,7.171,139.45,139.42,24.0103]
[1728555810782,23.776884,139.49,139.42,6.0795]
[1728555810985,17.924,139.48,139.42,6.0795]
[1728555811168,7.1711,139.45,139.42,6.0795]
[1728555813064,7.1711,139.45,139.42,7.51380345]
[1728555813284,7.1711,139.45,139.42,6.0795]
[1728555813483,7.1711,139.45,139.42,7.51380466]
[1728555814868,7.1711,139.45,139.42,6.0795]
[1728555816390,7.1711,139.45,139.42,13.252]
[1728555817073,7.1711,139.45,139.42,14.6862705]
[1728555818098,7.1711,139.45,139.42,13.252]
[1728555818899,7.1711,139.45,139.42,14.68627396]
[1728555819582,7.1711,139.45,139.42,6.0795]
[1728555820298,17.924,139.48,139.41,40.55339]
[1728555820593,7.1731,139.41,139.38,17.9353]
[1728555820892,34.0646,139.46,139.37,15.9328]
[1728555820893,17.9289,139.44,139.37,15.9328]
[1728555821198,7.1741,139.39,139.36,7.1755]
[1728555821493,23.776884,139.45,139.35,24.5237]
[1728555821494,7.1746,139.38,139.35,24.5237]
[1728555821683,7.1742,139.39,139.35,31.6997]
[1728555822071,7.1742,139.39,139.36,0.25098]
[1728555823585,7.1742,139.39,139.35,31.6997]
[1728555823791,7.1742,139.39,139.35,7.1761]
[1728555824296,7.1742,139.39,139.34,41.0507]
[1728555824883,7.1747,139.38,139.35,0.25098]
[1728555825478,41.704984,139.45,139.35,0.25098]
[1728555825693,7.1732,139.41,139.37,7.175]
[1728555825883,7.1732,139.41,139.37,8.60982734]
[1728555826386,7.1736,139.4,139.36,25.1141]
[1728555828480,17.9304,139.43,139.35,0.25098]
[1728555828682,7.1746,139.38,139.35,0.25098]
[1728555829076,59.633984,139.45,139.34,23.1092]
[1728555829077,7.1753,139.37,139.34,15.9328]
[1728555829288,7.1747,139.38,139.34,23.1094]
[1728555829485,7.1747,139.38,139.35,1.43505328]
[1728555832393,7.1744,139.39,139.35,8.61105328]
[1728555834109,7.1744,139.39,139.35,7.176]
[1728555835410,7.1741,139.39,139.35,25.24179]
[1728555835608,7.1741,139.39,139.35,26.67672176]
[1728555835794,7.1741,139.39,139.35,25.24179]
[1728555837291,7.1741,139.39,139.35,26.67676595]
[1728555837493,7.1741,139.39,139.35,25.24179]
[1728555840390,7.1741,139.39,139.36,1.43497011]
[1728555840591,7.1741,139.39,139.35,26.67676001]
[1728555841915,17.9299,139.44,139.35,26.67676001]
[1728555842101,7.1739,139.4,139.36,7.30099]
[1728555845925,7.1739,139.4,139.37,7.30049]
[1728555846227,7.1732,139.41,139.37,7.30049]
[1728555847709,7.1741,139.39,139.36,7.30099]
[1728555847905,7.1737,139.4,139.36,7.30099]
[1728555848522,7.1741,139.39,139.36,7.30099]
[1728555850704,7.1741,139.39,139.36,0.12549]
[1728555856225,7.1741,139.39,139.35,25.1162]
[1728555857426,7.1746,139.38,139.35,17.9403]
[1728555858317,7.1746,139.38,139.35,25.1164]
[1728555858635,7.1743,139.39,139.35,25.1164]
[1728555859432,7.1743,139.39,139.36,1.43492401]
[1728555859627,17.9315,139.42,139.36,1.43492401]
[1728555859805,7.1735,139.41,139.37,7.175]
[1728555860118,7.1736,139.4,139.37,7.175]
[1728555860324,7.1736,139.4,139.36,8.61042401]
[1728555860523,23.776884,139.44,139.37,17.9372]
[1728555860725,7.1728,139.42,139.38,8.60891361]
[1728555861032,7.1731,139.41,139.38,0.12549]
[1728555861702,25.41949633,139.45,139.38,0.12549]
[1728555861703,7.1716,139.44,139.4,7.1734]
[1728555861951,7.49099633,139.45,139.4,1.43459506]
[1728555862131,16.1383,139.46,139.4,1.43459506]
[1728555862432,7.1715,139.44,139.4,8.60809506]
[1728555863534,7.1712,139.45,139.41,0.12549]
[1728555863712,7.1712,139.45,139.42,1.43434167]
[1728555866141,7.1708,139.46,139.43,0.25098]
[1728555866641,7.1701,139.47,139.44,1.43414215]
[1728555867937,7.1701,139.47,139.43,7.42298]
[1728555868139,7.1705,139.46,139.43,0.25098]
[1728555868339,7.1705,139.46,139.42,7.1724]
[1728555868840,7.1713,139.45,139.42,0.12549]
[1728555869017,7.1716,139.44,139.42,0.12549]
[1728555869220,33.0944,139.49,139.42,1.43431603]
[1728555869459,7.1711,139.45,139.42,1.43431603]
[1728555869839,7.1711,139.45,139.41,25.1054]
[1728555870341,7.1718,139.44,139.42,1.43434303]
[1728555870839,7.1718,139.44,139.41,0.12549]
[1728555872135,7.1711,139.45,139.42,0.12549]
[1728555872546,7.1715,139.44,139.41,0.12549]
[1728555875437,23.776884,139.48,139.41,1.5598767]
[1728555875640,7.1711,139.45,139.41,8.7325767]
[1728555875947,7.1701,139.47,139.43,7.29739]
[1728555876247,7.1701,139.47,139.44,1.4341093]
[1728555878314,7.1701,139.47,139.43,7.29739]
[1728555878516,7.1701,139.47,139.44,1.68501708]
[1728555881044,7.1705,139.46,139.43,7.1719]
[1728555881349,7.1702,139.47,139.44,1.43412113]
[1728555881518,7.1702,139.47,139.43,7.1719]
[1728555881718,7.1702,139.47,139.43,8.60601589]
[1728555882746,7.1702,139.47,139.44,1.43411818]
[1728555882922,7.1702,139.47,139.43,7.1719]
[1728555883143,7.1696,139.48,139.44,8.73110895]
[1728555883322,7.17,139.47,139.44,8.73110895]
[1728555883522,7.17,139.47,139.44,0.12549]
[1728555884349,7.17,139.47,139.44,1.55952539]
[1728555884530,18.7463131,139.51,139.44,1.55952539]
[1728555884531,7.1698,139.48,139.44,7.1713]
[1728555884944,7.1698,139.48,139.45,0.12549]
[1728555890133,7.1701,139.47,139.44,0.12549]
[1728555897543,0.8263131,139.51,139.42,23.9415]
[1728555897749,7.171,139.45,139.42,6.0111]
[1728555898156,17.9227,139.49,139.43,1.434213]
[1728555898356,7.1707,139.46,139.42,13.1836]
[1728555898659,17.9256,139.47,139.39,15.3125]
[1728555898835,7.172,139.43,139.4,7.29899]
[1728555899043,7.1717,139.44,139.4,7.29899]
[1728555900047,7.1717,139.44,139.41,0.12549]
[1728555900447,7.1725,139.42,139.41,0.12549]
[1728555900658,7.1716,139.44,139.41,0.12549]
[1728555901157,17.9256,139.47,139.41,0.12549]
[1728555901546,7.1722,139.43,139.41,0.12549]
[1728555901866,17.9256,139.47,139.41,1.55989004]
[1728555902171,7.1712,139.45,139.41,8.73289004]
[1728555903448,59.621084,139.5,139.41,0.12549]
[1728555903765,7.1722,139.43,139.41,0.12549]
[1728555904446,7.1717,139.44,139.41,1.55989224]
[1728555905045,7.1717,139.44,139.41,1.55988979]
[1728555905244,7.171,139.45,139.41,8.73288979]
[1728555905562,7.171,139.45,139.41,7.29849]
[1728555905867,7.171,139.45,139.42,1.43431154]
[1728555906267,23.776884,139.5,139.42,1.43431154]
[1728555906563,7.1707,139.46,139.43,7.172]
[1728555906773,18.7471131,139.51,139.44,8.73106961]
[1728555907067,7.1696,139.48,139.44,8.73106961]
[1728555907551,7.1696,139.48,139.44,7.29689]
[1728555907749,7.17,139.47,139.44,7.29689]
[1728555907957,7.17,139.47,139.44,0.12549]
[1728555908155,7.1705,139.46,139.43,13.6889]
[1728555908356,7.17,139.47,139.44,0.12549]
[1728555910745,7.1708,139.46,139.42,25.1036]
[1728555913949,17.9224,139.49,139.42,17.9312]
[1728555914155,7.1696,139.48,139.44,18.05399]
[1728555914371,7.1696,139.48,139.45,1.43398159]
[1728555914756,0.8263131,139.51,139.45,1.43398159]
[1728555914963,0.8263131,139.51,139.46,17.9257]
[1728555915178,7.1684,139.5,139.46,25.096]
[1728555915560,7.9943131,139.51,139.47,8.60369938]
[1728555915763,0.8263131,139.51,139.47,1.43379938]
[1728555915967,0.8263131,139.51,139.48,17.9232]
[1728555916276,7.9944131,139.51,139.48,17.9232]
[1728555916775,7.9944131,139.51,139.46,7.42128]
[1728555916776,7.1685,139.5,139.46,7.42128]
[1728555917281,7.1685,139.5,139.47,1.43379808]
[1728555917774,7.1685,139.5,139.46,0.25098]
[1728555917975,7.1685,139.5,139.47,1.4337971]
[1728555918877,7.1685,139.5,139.46,7.42138]
[1728555919054,7.1685,139.5,139.47,1.43379841]
[1728555920380,7.1685,139.5,139.46,7.42138]
[1728555920763,7.1685,139.5,139.46,8.85517799]
[1728555920964,7.1685,139.5,139.46,7.42138]
[1728555921171,7.1689,139.49,139.46,7.42138]
[1728555922481,7.1689,139.49,139.47,1.43383498]
[1728555922977,0.8263131,139.51,139.47,1.43383498]
[1728555923279,7.1686,139.5,139.47,1.43383498]
[1728555923861,7.1689,139.49,139.46,7.42138]
[1728555924069,7.1695,139.48,139.45,24.0524]
[1728555924379,0.8263131,139.51,139.45,24.0524]
[1728555924585,7.1695,139.48,139.45,24.0524]
[1728555925263,7.1695,139.48,139.44,0.12549]
[1728555925481,7.1695,139.48,139.43,7.29709]
[1728555925653,23.776884,139.5,139.44,7.1714]
[1728555925862,23.776884,139.48,139.41,22.4384]
[1728555926178,7.1718,139.44,139.4,7.1732]
[1728555926561,7.1714,139.45,139.41,7.173]
[1728555927457,41.700684,139.48,139.39,17.9344]
[1728555928086,41.700684,139.48,139.4,0.25098]
[1728555928255,7.1713,139.45,139.4,0.25098]
[1728555928878,7.1715,139.44,139.4,0.25098]
[1728555929086,7.1715,139.44,139.4,0.12549]
[1728555929275,7.1726,139.42,139.39,0.25098]
[1728555929964,7.1726,139.42,139.39,0.12549]
[1728555931273,17.9266,139.46,139.38,21.2365]
[1728555931588,40.084984,139.43,139.34,24.11834381]
[1728555931782,17.9317,139.42,139.34,22.8693]
[1728555931987,7.1751,139.37,139.32,7.1776]
[1728555933883,7.1751,139.37,139.33,1.43522437]
[1728555934083,7.1751,139.37,139.32,7.1776]
[1728555934480,23.776884,139.41,139.33,1.43522425]
[1728555934801,7.1748,139.38,139.33,1.43522425]
[1728555937807,17.9343,139.4,139.33,1.43522425]
[1728555937968,7.1757,139.36,139.32,0.12549]
[1728555938290,7.1752,139.37,139.32,0.12549]
[1728555938662,7.1752,139.37,139.32,7.30319]
[1728555939066,23.776884,139.42,139.32,0.12549]
[1728555939305,7.1747,139.38,139.32,18.06889]
[1728555939586,7.1747,139.38,139.32,25.24639]
[1728555940169,7.1752,139.37,139.32,25.24639]
[1728555944700,7.1757,139.36,139.32,18.06889]
[1728555948686,7.1766,139.34,139.3,22.8881]
[1728555949803,7.1763,139.35,139.3,30.0667]
[1728555950476,15.2431,139.38,139.31,0.12549]
[1728555950678,14.67629164,139.4,139.36,7.1756]
[1728555950883,14.67629164,139.4,139.34,0.25098]
[1728555951098,7.1737,139.4,139.35,26.55126183]
[1728555952109,7.1737,139.4,139.36,1.43496164]
[1728555952696,22.4157,139.42,139.37,7.1748]
[1728555953003,7.1736,139.4,139.36,8.61046164]
[1728555953800,7.1732,139.41,139.36,8.61046164]
[1728555954006,7.1727,139.42,139.37,7.175]
[1728555954300,7.1731,139.41,139.37,7.175]
[1728555954679,7.1731,139.41,139.36,1.43496164]
[1728555954904,7.1731,139.41,139.36,8.61046164]
[1728555957188,23.776884,139.44,139.36,1.43496164]
[1728555957388,7.1727,139.42,139.37,7.1751]
[1728555957788,23.776884,139.44,139.37,7.1751]
[1728555957988,7.1732,139.41,139.37,7.1751]
[1728555959479,7.1732,139.41,139.36,7.1754]
[1728555961004,7.1751,139.37,139.32,23.9549]
[1728555961304,7.1751,139.37,139.32,31.1322]
[1728555961508,7.1751,139.37,139.33,7.1771]
[1728555962698,15.3757,139.41,139.35,7.176]
[1728555962905,7.1737,139.4,139.36,1.43497649]
[1728555963487,7.1732,139.41,139.36,8.61037649]
[1728555963689,7.1732,139.41,139.36,26.54937649]
[1728555963990,17.9296,139.44,139.33,13.85027815]
[1728555963991,17.9296,139.44,139.35,7.1761]
[1728555964300,7.1737,139.4,139.36,1.43491165]
[1728555965187,7.1725,139.43,139.38,7.1745]
[1728555965491,15.3576,139.45,139.37,25.36368]
[1728555965687,7.1732,139.41,139.37,25.36368]
[1728555966193,7.1727,139.42,139.37,25.36368]
[1728555970513,7.1741,139.39,139.36,16.5324]
[1728555970716,17.9303,139.43,139.36,16.5324]
[1728555970922,7.1736,139.4,139.36,16.5324]
[1728555971803,7.1736,139.4,139.36,23.708]
[1728555973799,7.49934272,139.46,139.4,0.12549]
[1728555973998,7.49934272,139.46,139.42,7.1724]
[1728555974299,15.3984,139.49,139.42,7.1724]
[1728555974300,7.1701,139.47,139.42,7.1724]
[1728555980425,7.1701,139.47,139.42,8.60667662]
[1728555980918,7.1726,139.42,139.37,31.4344]
[1728555981127,7.1732,139.41,139.37,24.2594]
[1728555981330,23.776884,139.43,139.34,17.9408]
[1728555981509,7.1747,139.38,139.34,17.9408]
[1728555981710,23.776884,139.43,139.34,17.9408]
[1728555982037,7.1742,139.39,139.34,25.1174]
[1728555982202,7.1742,139.39,139.35,1.435037]
[1728555982405,7.1727,139.42,139.37,7.1747]
[1728555982619,7.1727,139.42,139.37,8.60957881]
[1728555983017,7.1727,139.42,139.37,7.1747]
[1728555984306,7.1727,139.42,139.37,8.60947145]
[1728555984718,7.1727,139.42,139.37,7.1747]
[1728555985826,23.776884,139.43,139.36,18.06359]
[1728555986331,7.174,139.4,139.36,18.06359]
[1728555986524,7.1742,139.39,139.35,0.25098]
[1728555987704,7.1742,139.39,139.35,7.1761]
[1728555988518,7.1742,139.39,139.36,1.43498434]
[1728555988826,7.1742,139.39,139.35,7.1761]
[1728555989224,7.1742,139.39,139.34,7.42748]
[1728555989415,7.1742,139.39,139.35,1.43505635]
[1728555989619,7.1742,139.39,139.35,7.1761]
[1728555990232,7.1737,139.4,139.36,1.434963]
[1728555991931,7.1732,139.41,139.36,7.1755]
[1728555992238,7.1732,139.41,139.37,1.43487839]
[1728555993437,16.3928,139.44,139.37,8.60977839]
[1728555993622,7.1727,139.42,139.37,8.60977839]
[1728555993826,7.1727,139.42,139.37,1.43487839]
[1728555994130,7.1727,139.42,139.37,7.175]
[1728555994326,7.1727,139.42,139.38,1.43476845]
[1728555995739,7.1747,139.38,139.33,13.5441]
[1728555995939,7.1742,139.39,139.34,8.61141987]
[1728555996133,7.1742,139.39,139.35,7.1758]
[1728555996615,7.1743,139.39,139.34,25.1172]
[1728555996812,7.1747,139.38,139.34,25.1172]
[1728555997009,7.1747,139.38,139.35,1.43510726]
[1728555997235,7.1747,139.38,139.34,25.1172]
[1728555997540,7.1747,139.38,139.34,26.552279]
[1728555997836,7.1747,139.38,139.34,25.1172]
[1728555998418,7.1747,139.38,139.35,1.43507873]
[1728555999019,7.1742,139.39,139.35,1.43507873]
[1728555999409,14.6727392,139.43,139.38,7.1742]
[1728555999618,7.1722,139.43,139.39,1.43469263]
[1728555999816,7.1717,139.44,139.39,8.60839263]
[1728556000034,7.1717,139.44,139.4,7.1734]
[1728556000826,7.1717,139.44,139.39,1.43469263]
[1728556001031,7.1717,139.44,139.39,8.60859263]
[1728556001233,15.763,139.47,139.38,17.936]
[1728556001426,7.173,139.42,139.38,25.1105]
[1728556002050,7.173,139.42,139.38,26.54514426]
[1728556002429,23.776884,139.45,139.38,26.54514426]
[1728556002728,7.1722,139.43,139.38,26.54514426]
[1728556004353,7.1713,139.45,139.41,7.173]
[1728556005648,7.172,139.44,139.4,24.3963]
[1728556006166,7.172,139.44,139.4,31.5698]
[1728556008152,7.172,139.44,139.41,1.43447018]
[1728556008328,7.172,139.44,139.4,31.5698]
[1728556011657,7.171,139.46,139.42,7.1725]
[1728556013753,23.776884,139.5,139.43,0.12549]
[1728556013936,7.1693,139.49,139.44,8.60513018]
[1728556016360,7.1693,139.49,139.45,7.1706]
[1728556016548,7.1693,139.49,139.46,1.43390683]
[1728556018062,7.1685,139.5,139.46,8.60420683]
[1728556018237,7.1685,139.5,139.47,1.43380564]
[1728556020240,7.9944131,139.51,139.47,8.60370564]
[1728556023762,7.1685,139.5,139.46,25.0964]
[1728556025368,7.1685,139.5,139.47,1.43379591]
[1728556026538,7.1685,139.5,139.46,25.0964]
[1728556026945,7.1685,139.5,139.47,1.43378836]
[1728556029571,7.1685,139.5,139.46,25.0964]
[1728556029972,0.8263131,139.51,139.48,7.1694]
[1728556030267,7.9943131,139.51,139.47,25.40126797]
[1728556030771,7.9943131,139.51,139.47,23.96748]
[1728556031568,7.9943131,139.51,139.48,1.43371861]
[1728556031764,0.8263131,139.51,139.48,17.9236]
[1728556031966,0.8263131,139.51,139.49,1.68450139]
[1728556032174,0.8263131,139.51,139.5,7.29389]
[1728556033273,0.8263131,139.51,139.5,0.12549]
[1728556033478,0.8263131,139.51,139.48,17.9236]
[1728556033655,0.8263131,139.51,139.48,25.0929]
[1728556033967,0.8263131,139.51,139.49,0.12549]
[1728556035842,0.8263131,139.51,139.49,1.55903142]
[1728556036760,0.8263131,139.51,139.49,0.12549]
[1728556036965,0.8263131,139.51,139.47,16.5468]
[1728556037172,7.1688,139.5,139.46,7.1703]
[1728556037869,0.8263131,139.51,139.45,19.89507979]
[1728556038180,0.8263131,139.51,139.48,7.1693]
[1728556038392,0.8263131,139.51,139.48,8.60292943]
[1728556038678,0.8263131,139.51,139.48,7.1693]
[1728556038972,7.1685,139.5,139.47,17.9244]
[1728556039474,7.9943131,139.51,139.47,25.0943]
[1728556044164,7.9943131,139.51,139.48,1.43366294]
[1728556044476,0.8263131,139.51,139.48,8.60306294]
[1728556046580,0.8263131,139.51,139.48,7.1694]
[1728556047379,7.9942131,139.51,139.47,25.0942]
[1728556048780,7.9942131,139.51,139.48,1.43364982]
[1728556049167,7.9942131,139.51,139.47,25.0942]
[1728556052660,7.1685,139.5,139.47,17.9244]
[1728556053684,7.9944131,139.51,139.47,26.52805016]
[1728556055064,7.9944131,139.51,139.48,1.43373173]
[1728556055266,7.9944131,139.51,139.48,8.60313173]
[1728556055658,7.9944131,139.51,139.48,7.1694]
[1728556056665,7.1687,139.5,139.47,17.9244]
[1728556056865,7.9944131,139.51,139.47,25.0942]
[1728556057373,7.1686,139.5,139.47,17.9244]
[1728556059471,7.9944131,139.51,139.47,25.0943]
[1728556061482,7.9944131,139.51,139.48,1.43375111]
[1728556069404,0.8263131,139.51,139.5,7.1684]
[1728556069691,0.8263131,139.51,139.5,8.60194619]
[1728556070290,0.8263131,139.51,139.49,25.0908]
[1728556070498,0.8263131,139.51,139.49,17.9221]
[1728556072683,0.8263131,139.51,139.49,25.091]
[1728556074082,0.8263131,139.51,139.49,17.9221]
[1728556074403,7.9942131,139.51,139.48,7.1691]
[1728556074574,0.8263131,139.51,139.48,7.1691]
[1728556078805,0.8263131,139.51,139.49,19.35568389]
[1728556079172,0.8263131,139.51,139.49,17.922]
[1728556080397,0.8263131,139.51,139.5,8.60194453]
[1728556080909,0.8263131,139.51,139.49,17.922]
[1728556081076,0.8263131,139.51,139.49,25.0908]
[1728556081600,0.8263131,139.51,139.5,8.60194294]
[1728556081793,0.8263131,139.51,139.5,7.1684]
[1728556083807,0.8263131,139.51,139.5,8.60186348]
[1728556084496,0.8263131,139.51,139.5,7.1684]
[1728556085611,0.8263131,139.51,139.49,25.0906]
[1728556085986,0.8263131,139.51,139.48,7.29469]
[1728556086406,7.9943131,139.51,139.46,17.925]
[1728556086589,7.9943131,139.51,139.47,7.1699]
[1728556091922,7.9943131,139.51,139.48,7.1694]
[1728556093697,7.1698,139.48,139.44,7.1714]
[1728556096314,7.1704,139.47,139.43,25.1008]
[1728556096723,7.1704,139.47,139.43,26.53492841]
[1728556097796,7.1692,139.49,139.45,7.1707]
[1728556099192,7.1686,139.5,139.46,8.60434002]
[1728556099825,7.1686,139.5,139.46,7.1704]
[1728556100800,7.1686,139.5,139.46,8.604256]
[1728556101192,0.8263131,139.51,139.45,18.05279]
[1728556101398,0.8263131,139.51,139.45,17.9273]
[1728556101715,7.1695,139.48,139.45,17.9273]
[1728556105024,7.1691,139.49,139.45,25.0982]
[1728556105226,7.1691,139.49,139.46,8.60450895]
[1728556105626,7.9943131,139.51,139.47,7.1696]
[1728556106129,7.1685,139.5,139.46,7.1703]
[1728556106303,7.1685,139.5,139.47,1.43382579]
[1728556107117,7.1685,139.5,139.46,7.1703]
[1728556107329,7.1685,139.5,139.46,8.60414984]
[1728556109030,7.1685,139.5,139.46,7.1703]
[1728556109423,7.1685,139.5,139.47,1.43385429]
[1728556112231,7.1685,139.5,139.46,7.1703]
[1728556112735,7.1685,139.5,139.46,8.60415272]
[1728556113319,7.1685,139.5,139.46,7.1703]
[1728556113820,7.1692,139.49,139.45,25.0981]
[1728556115627,7.1692,139.49,139.46,1.43390528]
[1728556116650,7.1686,139.5,139.46,7.1701]
[1728556118910,0.8263131,139.51,139.45,17.9273]
[1728556119112,7.1691,139.49,139.45,25.0981]
[1728556119343,0.8263131,139.51,139.45,25.0981]
[1728556119509,7.1694,139.48,139.44,0.12549]
[1728556119709,7.1703,139.47,139.43,7.1716]
[1728556119909,7.1703,139.47,139.44,8.60548273]
[1728556120332,7.1703,139.47,139.44,7.1714]
[1728556120507,7.1696,139.48,139.44,7.1714]
[1728556121812,7.1696,139.48,139.45,8.6050603]
[1728556122019,7.1691,139.49,139.45,8.6050603]
[1728556124031,7.1687,139.5,139.46,7.1702]
[1728556124253,7.1687,139.5,139.47,1.4338271]
[1728556124406,7.1687,139.5,139.46,7.1702]
[1728556127844,7.1689,139.49,139.46,7.1702]
[1728556128242,0.8263131,139.51,139.44,25.1001]
[1728556129540,7.17,139.47,139.44,25.1001]
[1728556130046,0.8263131,139.51,139.44,25.1001]
[1728556130223,7.1696,139.48,139.44,25.1001]
[1728556130620,7.1696,139.48,139.45,1.43402335]
[1728556131331,7.1696,139.48,139.44,25.1001]
[1728556132341,0.8263131,139.51,139.43,0.12549]
[1728556132523,7.1708,139.46,139.42,0.25098]
[1728556133422,7.1708,139.46,139.42,7.42318]
[1728556134658,17.9224,139.49,139.41,40.2924]
[1728556134944,7.171,139.45,139.41,47.4652]
[1728556140325,7.171,139.45,139.42,1.43432039]
[1728556141844,7.1706,139.46,139.42,0.25098]
[1728556143040,17.9224,139.49,139.42,0.25098]
[1728556143041,7.1694,139.48,139.45,7.171]
[1728556143357,7.1694,139.48,139.43,17.9291]